[Event "Live Chess"]
[Site "Chess.com"]
[Date "2021.02.28"]
[Round "-"]
[White "Wardlaw, Tom"]
[Black "Seijas Otero, Ana Belen"]
[Result "1-0"]
[BlackElo "1319"]
[CurrentPosition "1k5b/1p3n2/p4PBp/3N2p1/2N5/8/P4PPP/6K1 b - -"]
[ECO "A40"]
[ECOUrl "https://www.chess.com/openings/Queens-Pawn-Opening-Horwitz-Defense-2.c4"]
[EndDate "2021.02.28"]
[EndTime "14:27:55"]
[Link "https://www.chess.com/live/game/8259853679"]
[StartTime "14:01:14"]
[Termination "TomChess50 won by resignation"]
[TimeControl "1510"]
[Timezone "UTC"]
[UTCDate "2021.02.28"]
[UTCTime "14:01:14"]
[WhiteElo "1500"]

1. c4 { [%clk 0:25:10] } 1... e6 { [%clk 0:25:10] } 2. d4 { [%clk 0:24:56.3] } 2... d5 { [%clk 0:25:08.1] } 3. Nf3 { [%clk 0:24:43.6] } 3... Nf6 { [%clk 0:25:05.6] } 4. Nc3 { [%clk 0:24:32.8] } 4... g6 { [%clk 0:24:51.3] } 5. Bg5 { [%clk 0:24:14.3] } 5... Bg7 { [%clk 0:24:47.8] } 6. e3 { [%clk 0:23:46.7] } 6... c5 { [%clk 0:24:40.4] } 7. cxd5 { [%clk 0:23:32.6] } 7... exd5 { [%clk 0:24:35.9] } 8. dxc5 { [%clk 0:23:17.3] } 8... Qa5 { [%clk 0:24:32.3] } 9. Qd2 { [%clk 0:22:14.5] } 9... Qxc5 { [%clk 0:24:27] } 10. Bxf6 { [%clk 0:20:40.3] } 10... Bxf6 { [%clk 0:24:21.6] } 11. Nxd5 { [%clk 0:20:30] } 11... Bg7 { [%clk 0:23:50.7] } 12. Rc1 { [%clk 0:20:00.9] } 12... Qd6 { [%clk 0:21:49.1] } 13. Rxc8+ { [%clk 0:18:29.2] } 13... Kd7 { [%clk 0:21:29.6] } 14. Rxh8 { [%clk 0:16:32.1] } 14... Bxh8 { [%clk 0:21:25.3] } 15. Bb5+ { [%clk 0:16:22] } 15... Nc6 { [%clk 0:21:14.4] } 16. O-O { [%clk 0:14:42.1] } 16... Rd8 { [%clk 0:18:57.4] } 17. Nf4 { [%clk 0:13:31.6] } 17... Qxd2 { [%clk 0:18:50.2] } 18. Nxd2 { [%clk 0:13:29.4] } 18... Bxb2 { [%clk 0:18:42.5] } 19. Nc4 { [%clk 0:12:46.4] } 19... Bg7 { [%clk 0:18:04.2] } 20. Rd1+ { [%clk 0:12:36] } 20... Kc7 { [%clk 0:18:01.7] } 21. Rxd8 { [%clk 0:12:27.3] } 21... Nxd8 { [%clk 0:17:57.7] } 22. Nd5+ { [%clk 0:12:10.1] } 22... Kb8 { [%clk 0:17:42.6] } 23. Nd6 { [%clk 0:11:45.4] } 23... f5 { [%clk 0:17:25] } 24. e4 { [%clk 0:11:20.2] } 24... a6 { [%clk 0:17:02.6] } 25. Bd3 { [%clk 0:11:02.7] } 25... Be5 { [%clk 0:16:49] } 26. Nc4 { [%clk 0:10:40.3] } 26... Bh8 { [%clk 0:16:20.8] } 27. exf5 { [%clk 0:10:24.3] } 27... g5 { [%clk 0:16:15.1] } 28. f6 { [%clk 0:10:14.7] } 28... h6 { [%clk 0:16:03] } 29. Bf5 { [%clk 0:09:01.5] } 29... Nf7 { [%clk 0:15:51.5] } 30. Bg6 { [%clk 0:08:39.4] } 1-0

[Event "Live Chess"]
[Site "Chess.com"]
[Date "2021.02.28"]
[Round "-"]
[White "Kelly, Conor"]
[Black "Wilson, Andy"]
[Result "1-0"]
[BlackElo "1470"]
[CurrentPosition "1b3R1k/1p6/2p3Q1/p2pP3/P2P4/2P4P/1P4P1/6K1 b - -"]
[ECO "C28"]
[ECOUrl "https://www.chess.com/openings/Bishops-Opening-Berlin-Vienna-Hybrid-Variation"]
[EndDate "2021.02.28"]
[EndTime "14:54:26"]
[Link "https://www.chess.com/live/game/8260420175"]
[StartTime "14:09:14"]
[Termination "kellycj42 won by checkmate"]
[TimeControl "1500+10"]
[Timezone "UTC"]
[UTCDate "2021.02.28"]
[UTCTime "14:09:14"]
[WhiteElo "1342"]

1. e4 { [%clk 0:25:10] } 1... e5 { [%clk 0:25:10] } 2. Nc3 { [%clk 0:25:18.3] } 2... Nc6 { [%clk 0:25:16.3] } 3. Bc4 { [%clk 0:25:25.9] } 3... Nf6 { [%clk 0:25:23.6] } 4. d3 { [%clk 0:25:26.8] } 4... h6 { [%clk 0:25:32] } 5. f4 { [%clk 0:24:59.3] } 5... exf4 { [%clk 0:25:28.6] } 6. Bxf4 { [%clk 0:25:03] } 6... Bb4 { [%clk 0:25:37.2] } 7. Ne2 { [%clk 0:23:41.7] } 7... O-O { [%clk 0:25:41.2] } 8. O-O { [%clk 0:23:38.5] } 8... d6 { [%clk 0:25:11.5] } 9. Nd5 { [%clk 0:19:43.2] } 9... Nxd5 { [%clk 0:25:03.8] } 10. Bxd5 { [%clk 0:19:49.5] } 10... Ne7 { [%clk 0:24:44.5] } 11. Bb3 { [%clk 0:19:57.3] } 11... Ng6 { [%clk 0:24:48.2] } 12. Be3 { [%clk 0:18:44.9] } 12... Bg4 { [%clk 0:24:24.6] } 13. h3 { [%clk 0:17:03.3] } 13... Be6 { [%clk 0:24:26] } 14. c3 { [%clk 0:15:49.6] } 14... Ba5 { [%clk 0:24:15.3] } 15. d4 { [%clk 0:15:35.2] } 15... Bb6 { [%clk 0:24:10.2] } 16. a4 { [%clk 0:11:10.1] } 16... a5 { [%clk 0:24:12.8] } 17. Ng3 { [%clk 0:11:04.3] } 17... Bxb3 { [%clk 0:24:14.1] } 18. Qxb3 { [%clk 0:11:06.7] } 18... Ne7 { [%clk 0:22:46] } 19. Rf3 { [%clk 0:09:22.3] } 19... d5 { [%clk 0:22:40.9] } 20. Raf1 { [%clk 0:08:03.9] } 20... Ba7 { [%clk 0:21:08.2] } 21. Qc2 { [%clk 0:06:23.8] } 21... c6 { [%clk 0:20:35.6] } 22. e5 { [%clk 0:05:40.7] } 22... Qd7 { [%clk 0:20:22.7] } 23. Nh5 { [%clk 0:03:17.6] } 23... Rac8 { [%clk 0:19:58.9] } 24. Bxh6 { [%clk 0:03:08.7] } 24... Qe6 { [%clk 0:17:54.8] } 25. Qd2 { [%clk 0:01:07.1] } 25... gxh6 { [%clk 0:17:18.9] } 26. Nf6+ { [%clk 0:01:13] } 26... Qxf6 { [%clk 0:16:52.1] } 27. Rxf6 { [%clk 0:01:21] } 27... Ng6 { [%clk 0:15:20.8] } 28. Qxh6 { [%clk 0:00:47.7] } 28... Rce8 { [%clk 0:15:27.9] } 29. R1f3 { [%clk 0:00:46.9] } 29... Re6 { [%clk 0:15:25.6] } 30. Rxe6 { [%clk 0:00:29.5] } 30... Bb8 { [%clk 0:14:55.8] } 31. Rxg6+ { [%clk 0:00:31] } 31... fxg6 { [%clk 0:14:59.6] } 32. Qxg6+ { [%clk 0:00:40.1] } 32... Kh8 { [%clk 0:15:05.6] } 33. Rxf8# { [%clk 0:00:49.6] } 1-0

[Event "Live Chess"]
[Site "Chess.com"]
[Date "2021.02.28"]
[Round "-"]
[White "Perrie, Bill"]
[Black "McEvoy Gould, Kit"]
[Result "0-1"]
[BlackElo "1190"]
[CurrentPosition "8/1p6/8/p3pp2/P2kb3/1P6/1K6/8 w - -"]
[ECO "D04"]
[ECOUrl "https://www.chess.com/openings/Colle-System"]
[EndDate "2021.02.28"]
[EndTime "14:24:01"]
[Link "https://www.chess.com/live/game/8259828705"]
[StartTime "13:59:42"]
[Termination "KLM742 won by resignation"]
[TimeControl "1500+10"]
[Timezone "UTC"]
[UTCDate "2021.02.28"]
[UTCTime "13:59:42"]
[WhiteElo "1185"]

1. d4 { [%clk 0:25:10] } 1... d5 { [%clk 0:25:10] } 2. e3 { [%clk 0:25:12.9] } 2... Nf6 { [%clk 0:25:12.8] } 3. Nf3 { [%clk 0:25:16.2] } 3... Bf5 { [%clk 0:25:20.6] } 4. c3 { [%clk 0:24:37.2] } 4... e6 { [%clk 0:25:19.7] } 5. Bd3 { [%clk 0:24:36.8] } 5... Bg6 { [%clk 0:25:12.2] } 6. O-O { [%clk 0:24:13.8] } 6... Bd6 { [%clk 0:24:55.1] } 7. Nbd2 { [%clk 0:23:54.8] } 7... Bxd3 { [%clk 0:25:00.7] } 8. Re1 { [%clk 0:23:54.8] } 8... Ne4 { [%clk 0:24:45.4] } 9. Nxe4 { [%clk 0:24:00] } 9... Bxe4 { [%clk 0:24:55.3] } 10. Ne5 { [%clk 0:23:25.1] } 10... Bxe5 { [%clk 0:24:56.4] } 11. dxe5 { [%clk 0:23:27.1] } 11... Qg5 { [%clk 0:24:42.5] } 12. f3 { [%clk 0:23:29.1] } 12... Bg6 { [%clk 0:24:37.2] } 13. Rf1 { [%clk 0:23:32.2] } 13... Qxe5 { [%clk 0:24:30.5] } 14. f4 { [%clk 0:23:38] } 14... Qf5 { [%clk 0:24:08] } 15. Qa4+ { [%clk 0:23:00.9] } 15... Nc6 { [%clk 0:24:09.3] } 16. Qd1 { [%clk 0:21:40.8] } 16... Qd3 { [%clk 0:24:10.9] } 17. Qxd3 { [%clk 0:21:43.1] } 17... Bxd3 { [%clk 0:24:20.8] } 18. Re1 { [%clk 0:21:49.1] } 18... Be4 { [%clk 0:24:22.8] } 19. b3 { [%clk 0:21:39.3] } 19... O-O-O { [%clk 0:24:25.3] } 20. a4 { [%clk 0:21:17.5] } 20... g5 { [%clk 0:24:13.3] } 21. fxg5 { [%clk 0:20:23] } 21... Rhg8 { [%clk 0:24:20.9] } 22. Re2 { [%clk 0:20:28.9] } 22... Rxg5 { [%clk 0:24:22.8] } 23. g3 { [%clk 0:20:33] } 23... Rdg8 { [%clk 0:24:12.2] } 24. Raa2 { [%clk 0:20:35.9] } 24... h5 { [%clk 0:24:13.5] } 25. Bd2 { [%clk 0:19:58.4] } 25... h4 { [%clk 0:24:16.2] } 26. Be1 { [%clk 0:20:06.4] } 26... hxg3 { [%clk 0:24:07.3] } 27. Bxg3 { [%clk 0:20:13.5] } 27... Ne7 { [%clk 0:24:06.6] } 28. Kf1 { [%clk 0:17:59.5] } 28... Nf5 { [%clk 0:24:09.5] } 29. Ke1 { [%clk 0:17:58.2] } 29... Nxg3 { [%clk 0:24:11] } 30. hxg3 { [%clk 0:18:04.7] } 30... Rxg3 { [%clk 0:24:20.9] } 31. Kd2 { [%clk 0:18:10.9] } 31... e5 { [%clk 0:23:54.6] } 32. c4 { [%clk 0:18:13.8] } 32... c6 { [%clk 0:24:02.6] } 33. cxd5 { [%clk 0:18:16.6] } 33... cxd5 { [%clk 0:24:12.5] } 34. Kc1 { [%clk 0:16:42.7] } 34... Rg1+ { [%clk 0:24:05.9] } 35. Kb2 { [%clk 0:16:49.7] } 35... R1g2 { [%clk 0:24:13.6] } 36. Rxg2 { [%clk 0:16:50.5] } 36... Rxg2+ { [%clk 0:24:23.5] } 37. Ka3 { [%clk 0:16:57] } 37... Rxa2+ { [%clk 0:24:31.6] } 38. Kxa2 { [%clk 0:16:52.4] } 38... f5 { [%clk 0:24:35.2] } 39. Kb2 { [%clk 0:16:56.1] } 39... a5 { [%clk 0:24:41.3] } 40. Kc1 { [%clk 0:17:03.6] } 40... Kc7 { [%clk 0:24:47.3] } 41. Kd2 { [%clk 0:17:11.4] } 41... Kc6 { [%clk 0:24:54.8] } 42. Kc3 { [%clk 0:16:49.2] } 42... Kc5 { [%clk 0:25:02.3] } 43. Kb2 { [%clk 0:16:39.4] } 43... d4 { [%clk 0:25:02.9] } 44. exd4+ { [%clk 0:16:46.2] } 44... Kxd4 { [%clk 0:25:11.5] } 0-1

[Event "Live Chess"]
[Site "Chess.com"]
[Date "2021.02.28"]
[Round "-"]
[White "Linskaill, Chris"]
[Black "Munshi, Aryan"]
[Result "0-1"]
[BlackElo "1498"]
[CurrentPosition "6k1/8/r5pR/5nP1/8/6K1/8/8 w - -"]
[ECO "A15"]
[ECOUrl "https://www.chess.com/openings/English-Opening-Anglo-Indian-Kings-Knight-Variation"]
[EndDate "2021.02.28"]
[EndTime "15:23:43"]
[Link "https://www.chess.com/live/game/8260520181"]
[StartTime "14:15:33"]
[Termination "Munchbox1610 won by resignation"]
[TimeControl "1500+10"]
[Timezone "UTC"]
[UTCDate "2021.02.28"]
[UTCTime "14:15:33"]
[WhiteElo "1507"]

1. Nf3 { [%clk 0:25:10] } 1... Nf6 { [%clk 0:25:10] } 2. c4 { [%clk 0:25:17] } 2... g6 { [%clk 0:25:14.9] } 3. b3 { [%clk 0:25:25.2] } 3... Bg7 { [%clk 0:25:23.6] } 4. Bb2 { [%clk 0:25:34.1] } 4... d6 { [%clk 0:25:32.4] } 5. d4 { [%clk 0:25:37.5] } 5... O-O { [%clk 0:25:39.9] } 6. g3 { [%clk 0:25:45.9] } 6... Nbd7 { [%clk 0:25:48.6] } 7. Bg2 { [%clk 0:25:52.9] } 7... c6 { [%clk 0:25:23.8] } 8. O-O { [%clk 0:25:57.6] } 8... Qc7 { [%clk 0:25:25.3] } 9. Nbd2 { [%clk 0:26:03.3] } 9... e5 { [%clk 0:25:32.3] } 10. e4 { [%clk 0:26:04.9] } 10... b6 { [%clk 0:24:14.9] } 11. Rc1 { [%clk 0:26:03.2] } 11... exd4 { [%clk 0:24:01.5] } 12. Nxd4 { [%clk 0:26:09.3] } 12... Ne5 { [%clk 0:23:36.1] } 13. Qc2 { [%clk 0:26:06.1] } 13... Ba6 { [%clk 0:23:22.8] } 14. Rfe1 { [%clk 0:25:44.4] } 14... Rac8 { [%clk 0:22:07.2] } 15. Bh3 { [%clk 0:24:58] } 15... Rcd8 { [%clk 0:22:06] } 16. f4 { [%clk 0:24:55.9] } 16... Ned7 { [%clk 0:21:58.4] } 17. N4f3 { [%clk 0:24:48.9] } 17... Rfe8 { [%clk 0:21:29.6] } 18. e5 { [%clk 0:24:33.2] } 18... dxe5 { [%clk 0:21:32.7] } 19. Nxe5 { [%clk 0:24:39.1] } 19... Nxe5 { [%clk 0:21:40] } 20. fxe5 { [%clk 0:24:07.1] } 20... Nh5 { [%clk 0:20:01.3] } 21. e6 { [%clk 0:23:58.3] } 21... fxe6 { [%clk 0:19:54] } 22. Bxe6+ { [%clk 0:24:01.1] } 22... Kh8 { [%clk 0:19:57.5] } 23. Bxg7+ { [%clk 0:23:11.9] } 23... Nxg7 { [%clk 0:20:02.4] } 24. Bh3 { [%clk 0:22:08] } 24... Bc8 { [%clk 0:19:35.2] } 25. Bxc8 { [%clk 0:22:01.3] } 25... Qxc8 { [%clk 0:19:42.9] } 26. Rf1 { [%clk 0:20:37.3] } 26... Qd7 { [%clk 0:19:31.9] } 27. Nf3 { [%clk 0:20:43.3] } 27... Nf5 { [%clk 0:19:34] } 28. Rcd1 { [%clk 0:20:09.3] } 28... Qg7 { [%clk 0:19:35] } 29. Rxd8 { [%clk 0:20:12.5] } 29... Rxd8 { [%clk 0:19:42.7] } 30. Re1 { [%clk 0:20:02.6] } 30... Qd7 { [%clk 0:19:24] } 31. Qe4 { [%clk 0:20:01] } 31... Qd3 { [%clk 0:17:13.9] } 32. Qe5+ { [%clk 0:20:00.4] } 32... Ng7 { [%clk 0:17:07.9] } 33. Kg2 { [%clk 0:19:47] } 33... Qd7 { [%clk 0:16:29.7] } 34. Qe7 { [%clk 0:17:47.7] } 34... Nf5 { [%clk 0:14:10.8] } 35. Qf6+ { [%clk 0:17:20.1] } 35... Kg8 { [%clk 0:13:13.8] } 36. g4 { [%clk 0:13:33.5] } 36... Rf8 { [%clk 0:12:26.6] } 37. Qe6+ { [%clk 0:13:31.9] } 37... Qxe6 { [%clk 0:12:02.4] } 38. Rxe6 { [%clk 0:13:39.5] } 38... Nh6 { [%clk 0:11:51.4] } 39. g5 { [%clk 0:13:20] } 39... Ng4 { [%clk 0:11:57.4] } 40. Rxc6 { [%clk 0:13:22.4] } 40... Ne3+ { [%clk 0:12:05.7] } 41. Kf2 { [%clk 0:13:05.4] } 41... Nd1+ { [%clk 0:10:52.1] } 42. Kg3 { [%clk 0:12:37.5] } 42... Nc3 { [%clk 0:10:39.2] } 43. Rc7 { [%clk 0:11:18.4] } 43... Nxa2 { [%clk 0:10:14.1] } 44. Rxa7 { [%clk 0:10:29.9] } 44... Nc1 { [%clk 0:10:00.3] } 45. b4 { [%clk 0:10:29.9] } 45... Nd3 { [%clk 0:10:03.1] } 46. Rb7 { [%clk 0:10:24.9] } 46... Nxb4 { [%clk 0:10:04.7] } 47. Rxb6 { [%clk 0:10:15.7] } 47... Nd3 { [%clk 0:10:11.9] } 48. Rd6 { [%clk 0:09:59] } 48... Nc5 { [%clk 0:09:21] } 49. Rd5 { [%clk 0:09:13.6] } 49... Ne4+ { [%clk 0:09:23.4] } 50. Kg2 { [%clk 0:09:17.8] } 50... Rc8 { [%clk 0:09:26.2] } 51. Rd4 { [%clk 0:09:05.9] } 51... Nc5 { [%clk 0:09:17.7] } 52. h4 { [%clk 0:08:48.3] } 52... Ne6 { [%clk 0:09:22.3] } 53. Re4 { [%clk 0:08:40.7] } 53... Nc5 { [%clk 0:09:24.7] } 54. Rd4 { [%clk 0:08:27.7] } 54... Ne6 { [%clk 0:09:30.5] } 55. Rd6 { [%clk 0:08:07.9] } 55... Nf4+ { [%clk 0:09:29.8] } 56. Kg3 { [%clk 0:08:12.6] } 56... Nh5+ { [%clk 0:09:26.1] } 57. Kf2 { [%clk 0:08:03.6] } 57... Rxc4 { [%clk 0:09:29.3] } 58. Rd8+ { [%clk 0:08:00] } 58... Kg7 { [%clk 0:09:23.8] } 59. Nd4 { [%clk 0:04:47.6] } 59... Ra4 { [%clk 0:08:01.1] } 60. Ke3 { [%clk 0:04:32.4] } 60... Ng3 { [%clk 0:07:25.7] } 61. Rd7+ { [%clk 0:04:16.2] } 61... Kg8 { [%clk 0:07:23] } 62. Rd8+ { [%clk 0:01:58.5] } 62... Kg7 { [%clk 0:07:19.7] } 63. Ne6+ { [%clk 0:02:00.5] } 63... Kf7 { [%clk 0:07:26.1] } 64. Nf4 { [%clk 0:01:57.2] } 64... Nf5+ { [%clk 0:07:23.2] } 65. Kf3 { [%clk 0:01:58.6] } 65... Nxh4+ { [%clk 0:07:28.5] } 66. Kg4 { [%clk 0:01:47.1] } 66... Ng2 { [%clk 0:07:08.8] } 67. Rd7+ { [%clk 0:01:15.6] } 67... Ke8 { [%clk 0:07:14.3] } 68. Rxh7 { [%clk 0:01:16.6] } 68... Nxf4 { [%clk 0:07:22] } 69. Kg3 { [%clk 0:01:05.9] } 69... Ne6 { [%clk 0:07:16.7] } 70. Rh6 { [%clk 0:00:57] } 70... Kf7 { [%clk 0:07:20.1] } 71. Rh7+ { [%clk 0:01:02.7] } 71... Ng7 { [%clk 0:07:29.1] } 72. Kf3 { [%clk 0:00:42.6] } 72... Ra5 { [%clk 0:07:13.3] } 73. Kg4 { [%clk 0:00:41.4] } 73... Kg8 { [%clk 0:06:58.8] } 74. Rh6 { [%clk 0:00:43.7] } 74... Ra6 { [%clk 0:07:06.9] } 75. Kg3 { [%clk 0:00:37] } 75... Nf5+ { [%clk 0:07:14.6] } 0-1

[Event "Live Chess"]
[Site "Chess.com"]
[Date "2021.02.28"]
[Round "-"]
[White "Vadalia, Jainill"]
[Black "Moon, Billy"]
[Result "1-0"]
[BlackElo "1412"]
[CurrentPosition "4Q3/3K2k1/6Q1/6p1/6Pp/7P/8/8 b - -"]
[ECO "B06"]
[ECOUrl "https://www.chess.com/openings/Modern-Defense-with-1-e4-2.d4"]
[EndDate "2021.02.28"]
[EndTime "14:46:58"]
[Link "https://www.chess.com/live/game/8260481911"]
[StartTime "14:13:38"]
[Termination "Jainill1003 won by checkmate"]
[TimeControl "1500+10"]
[Timezone "UTC"]
[UTCDate "2021.02.28"]
[UTCTime "14:13:38"]
[WhiteElo "1444"]

1. d4 { [%clk 0:25:10] } 1... g6 { [%clk 0:25:10] } 2. e4 { [%clk 0:25:00.5] } 2... Bg7 { [%clk 0:24:53.5] } 3. Nf3 { [%clk 0:25:08.5] } 3... d6 { [%clk 0:24:47.1] } 4. h3 { [%clk 0:25:16.2] } 4... b6 { [%clk 0:24:37.1] } 5. Nc3 { [%clk 0:25:15] } 5... Nf6 { [%clk 0:23:46.7] } 6. Bd3 { [%clk 0:25:07.1] } 6... O-O { [%clk 0:23:40.8] } 7. Be3 { [%clk 0:25:13.2] } 7... c5 { [%clk 0:23:39] } 8. d5 { [%clk 0:24:57.2] } 8... Nfd7 { [%clk 0:23:45.3] } 9. Qd2 { [%clk 0:24:49.9] } 9... Ne5 { [%clk 0:23:20.6] } 10. Nxe5 { [%clk 0:24:48.5] } 10... Bxe5 { [%clk 0:23:17.1] } 11. O-O { [%clk 0:24:48.7] } 11... f5 { [%clk 0:23:17] } 12. Bh6 { [%clk 0:24:52.1] } 12... Rf7 { [%clk 0:23:24.2] } 13. Bf4 { [%clk 0:23:19.2] } 13... Bxf4 { [%clk 0:22:43] } 14. Qxf4 { [%clk 0:23:26.6] } 14... fxe4 { [%clk 0:22:50.9] } 15. Qxe4 { [%clk 0:23:34.8] } 15... Bf5 { [%clk 0:22:59.5] } 16. Qe3 { [%clk 0:23:42.4] } 16... Nd7 { [%clk 0:22:54.4] } 17. Ne4 { [%clk 0:23:00.4] } 17... Ne5 { [%clk 0:22:15.8] } 18. Ng5 { [%clk 0:21:54.5] } 18... Rf6 { [%clk 0:21:24.3] } 19. Bxf5 { [%clk 0:21:25.4] } 19... Rxf5 { [%clk 0:21:16.4] } 20. Ne6 { [%clk 0:21:24.1] } 20... Qd7 { [%clk 0:20:58.7] } 21. f4 { [%clk 0:20:00.2] } 21... Nf7 { [%clk 0:20:33.9] } 22. c4 { [%clk 0:19:04.8] } 22... Nd8 { [%clk 0:20:21.9] } 23. Rae1 { [%clk 0:17:39.7] } 23... Nxe6 { [%clk 0:20:10.7] } 24. Qxe6+ { [%clk 0:17:42.7] } 24... Qxe6 { [%clk 0:20:09.3] } 25. Rxe6 { [%clk 0:17:52.6] } 25... Re8 { [%clk 0:19:57.2] } 26. g3 { [%clk 0:17:47] } 26... Rf6 { [%clk 0:19:58.8] } 27. Rfe1 { [%clk 0:17:52.6] } 27... Rf7 { [%clk 0:18:58.1] } 28. Rxd6 { [%clk 0:17:45.7] } 28... Kg7 { [%clk 0:18:56.1] } 29. Rd7 { [%clk 0:17:45.5] } 29... e5 { [%clk 0:18:55.1] } 30. Rxf7+ { [%clk 0:17:46.1] } 30... Kxf7 { [%clk 0:19:05] } 31. fxe5 { [%clk 0:17:53.7] } 31... g5 { [%clk 0:19:05.1] } 32. g4 { [%clk 0:17:29.4] } 32... Kg6 { [%clk 0:19:12.9] } 33. Kg2 { [%clk 0:17:33.2] } 33... h5 { [%clk 0:19:20.7] } 34. Kg3 { [%clk 0:17:41.3] } 34... h4+ { [%clk 0:19:28.5] } 35. Kg2 { [%clk 0:17:47.9] } 35... a6 { [%clk 0:19:02.3] } 36. a4 { [%clk 0:17:51.4] } 36... b5 { [%clk 0:18:59.8] } 37. axb5 { [%clk 0:17:51] } 37... axb5 { [%clk 0:19:09.7] } 38. cxb5 { [%clk 0:17:59.3] } 38... Rb8 { [%clk 0:19:17.1] } 39. d6 { [%clk 0:18:07.9] } 39... Kf7 { [%clk 0:19:19.5] } 40. e6+ { [%clk 0:18:13.7] } 40... Ke8 { [%clk 0:19:23.4] } 41. Kf3 { [%clk 0:18:14.2] } 41... Rxb5 { [%clk 0:19:31.8] } 42. Re2 { [%clk 0:18:15.9] } 42... Rb6 { [%clk 0:18:58.9] } 43. d7+ { [%clk 0:18:16.3] } 43... Ke7 { [%clk 0:19:07.3] } 44. Rd2 { [%clk 0:17:56.1] } 44... Rb8 { [%clk 0:18:30.4] } 45. Ke4 { [%clk 0:18:02.1] } 45... Rf8 { [%clk 0:18:15.5] } 46. Ke5 { [%clk 0:17:48.4] } 46... c4 { [%clk 0:17:56.4] } 47. d8=Q+ { [%clk 0:16:47.7] } 47... Rxd8 { [%clk 0:18:03.2] } 48. Rxd8 { [%clk 0:16:57.6] } 48... Kxd8 { [%clk 0:18:12.5] } 49. Kd6 { [%clk 0:17:07] } 49... Ke8 { [%clk 0:18:07.2] } 50. e7 { [%clk 0:17:06.4] } 50... Kf7 { [%clk 0:17:36.7] } 51. Kd7 { [%clk 0:17:12.4] } 51... c3 { [%clk 0:17:45.6] } 52. e8=Q+ { [%clk 0:17:19.9] } 52... Kf6 { [%clk 0:17:53.5] } 53. bxc3 { [%clk 0:17:10.2] } 53... Kg7 { [%clk 0:18:00.9] } 54. c4 { [%clk 0:17:17.9] } 54... Kh6 { [%clk 0:18:09.4] } 55. c5 { [%clk 0:17:24.2] } 55... Kg7 { [%clk 0:18:18.3] } 56. c6 { [%clk 0:17:33.1] } 56... Kh6 { [%clk 0:18:28.2] } 57. c7 { [%clk 0:17:40.9] } 57... Kg7 { [%clk 0:18:38.1] } 58. c8=Q { [%clk 0:17:48.1] } 58... Kh6 { [%clk 0:18:48] } 59. Qc6+ { [%clk 0:17:55.6] } 59... Kg7 { [%clk 0:18:55.7] } 60. Qcg6# { [%clk 0:18:04.7] } 1-0